bitfinex/quotes_BTCUSD_20250109
["timestamp","ask_amount","ask_price","bid_price","bid_amount"]
[1736440344984,1.4318486,94059.0,94058.0,8.7e-07]
[1736440346312,1.4388486,94059.0,94058.0,8.7e-07]
[1736440346511,1.4398486,94059.0,94058.0,8.7e-07]
[1736440346712,1.4328486,94059.0,94058.0,8.7e-07]
[1736440346996,1.53614836,94059.0,94058.0,8.7e-07]
[1736440347470,1.4358486,94059.0,94058.0,8.7e-07]
[1736440347723,1.4328486,94059.0,94058.0,8.7e-07]
[1736440347940,1.61234836,94059.0,94058.0,8.7e-07]
[1736440348142,1.71934836,94059.0,94058.0,8.7e-07]
[1736440348968,1.4388486,94059.0,94058.0,8.7e-07]
[1736440349410,1.4348486,94059.0,94058.0,8.7e-07]
[1736440349862,1.4388486,94059.0,94058.0,8.7e-07]
[1736440350089,1.43210551,94059.0,94058.0,8.7e-07]
[1736440350509,1.43910551,94059.0,94058.0,8.7e-07]
[1736440350718,1.43210551,94059.0,94058.0,8.7e-07]
[1736440350935,0.15167887,94051.0,94050.0,0.01]
[1736440351149,0.15274133,94051.0,94050.0,0.01]
[1736440351370,0.15274133,94051.0,94050.0,0.01049796]
[1736440351992,0.00274133,94051.0,94050.0,0.01049796]
[1736440352430,0.00374133,94051.0,94050.0,0.01049796]
[1736440353025,0.00274133,94051.0,94050.0,0.01049796]
[1736440353241,0.00474133,94051.0,94050.0,0.01049796]
[1736440353898,0.00874133,94051.0,94050.0,0.01049796]
[1736440354111,0.01555099,94051.0,94050.0,0.01049796]
[1736440354554,0.00474133,94051.0,94050.0,0.01049796]
[1736440354764,0.00674133,94051.0,94050.0,0.01049796]
[1736440354970,0.08620836,94051.0,94050.0,0.01049796]
[1736440355184,0.08720836,94051.0,94050.0,0.01049796]
[1736440355392,0.08676802,94051.0,94050.0,0.01049796]
[1736440355716,0.00630099,94051.0,94050.0,0.01049796]
[1736440355930,0.00830099,94051.0,94050.0,0.01049796]
[1736440356342,0.00430099,94051.0,94050.0,0.01049796]
[1736440356548,0.00523853,94051.0,94050.0,0.01049796]
[1736440356767,0.004,94051.0,94050.0,0.01049796]
[1736440356976,0.212648,94052.0,94050.0,0.08859796]
[1736440357187,0.004,94051.0,94050.0,0.08859796]
[1736440357537,0.004,94051.0,94050.0,0.01049796]
[1736440357939,0.005,94051.0,94050.0,0.01049796]
[1736440358369,0.004,94051.0,94050.0,0.01049796]
[1736440358771,0.0864069,94051.0,94050.0,0.01049796]
[1736440359138,0.006,94051.0,94050.0,0.01049796]
[1736440359338,0.21388653,94052.0,94050.0,0.01049796]
[1736440359747,0.005,94051.0,94050.0,0.01049796]
[1736440359948,0.001,94051.0,94050.0,0.01049796]
[1736440360364,0.005,94051.0,94050.0,0.01049796]
[1736440360570,0.001,94051.0,94050.0,0.01049796]
[1736440360779,0.0815069,94051.0,94050.0,0.01049796]
[1736440360986,0.23174543,94051.0,94050.0,0.01049796]
[1736440361412,0.23374543,94051.0,94050.0,0.01049796]
[1736440361834,0.23174543,94051.0,94050.0,0.01049796]
[1736440362219,0.23274543,94051.0,94050.0,0.01049796]
[1736440362644,0.23174543,94051.0,94050.0,0.01049796]
[1736440363060,0.23274543,94051.0,94050.0,0.01049796]
[1736440363267,0.15223853,94051.0,94050.0,0.01049796]
[1736440363482,0.003,94051.0,94050.0,0.24409772]
[1736440363924,0.003,94051.0,94050.0,0.49908123]
[1736440364140,0.04,94059.0,94055.0,0.1]
[1736440364346,0.04,94059.0,94058.0,0.18499976]
[1736440364571,0.04,94059.0,94058.0,0.2412218]
[1736440365623,0.04,94059.0,94058.0,0.24117673]
[1736440365848,0.04,94059.0,94058.0,0.20899976]
[1736440366282,0.04,94059.0,94058.0,0.18599976]
[1736440366497,0.04,94059.0,94058.0,0.19463976]
[1736440366922,0.04,94059.0,94058.0,0.43309478]
[1736440367327,0.04,94059.0,94058.0,0.38540934]
[1736440367517,0.04,94059.0,94058.0,0.38740934]
[1736440367724,0.0865248,94059.0,94058.0,0.30670934]
[1736440367930,0.04,94059.0,94058.0,0.11593976]
[1736440368135,0.04,94059.0,94058.0,0.10729976]
[1736440368353,0.04,94059.0,94058.0,0.11593976]
[1736440368712,0.04,94059.0,94058.0,0.11493976]
[1736440368922,0.04,94059.0,94058.0,0.11293976]
[1736440369106,0.04,94059.0,94058.0,0.11693976]
[1736440369306,0.04,94059.0,94058.0,0.35539478]
[1736440370207,0.04,94059.0,94058.0,0.11593976]
[1736440370632,0.04,94059.0,94058.0,0.11493976]
[1736440370833,0.04,94059.0,94058.0,0.11693976]
[1736440373736,0.08664865,94059.0,94058.0,0.10829976]
[1736440373955,0.08788718,94059.0,94058.0,0.004]
[1736440374379,0.09834085,94059.0,94058.0,0.004]
[1736440374588,0.25283113,94059.0,94050.0,0.01049796]
[1736440374813,0.36388853,94051.0,94050.0,0.01049796]
[1736440375030,1.43142626,94051.0,94050.0,0.01049796]
[1736440376501,1.51781654,94051.0,94050.0,9.6e-07]
[1736440376733,0.00123853,94047.0,94046.0,2.6e-07]
[1736440376951,0.36495999,94047.0,94046.0,2.6e-07]
[1736440377162,0.38502914,94047.0,94046.0,2.6e-07]
[1736440378015,0.38802914,94047.0,94046.0,2.6e-07]
[1736440378441,0.39602914,94047.0,94046.0,2.6e-07]
[1736440379048,0.6003289,94047.0,94046.0,2.6e-07]
[1736440379823,0.59583862,94047.0,94046.0,2.6e-07]
[1736440380031,0.6064725,94047.0,94046.0,2.6e-07]
[1736440380240,0.60796696,94047.0,94046.0,2.6e-07]
[1736440380660,0.59996696,94047.0,94046.0,2.6e-07]
[1736440381101,0.60396696,94047.0,94046.0,2.6e-07]
[1736440381515,0.61296696,94047.0,94046.0,2.6e-07]
[1736440381715,0.62563377,94047.0,94046.0,2.6e-07]
[1736440381923,0.39569268,94047.0,94046.0,2.6e-07]
[1736440382137,0.39119822,94047.0,94046.0,2.6e-07]
[1736440382337,0.40019822,94047.0,94046.0,2.6e-07]
[1736440382753,0.39895969,94047.0,94046.0,2.6e-07]
[1736440382961,0.38353141,94047.0,94046.0,2.6e-07]
[1736440383173,0.49283117,94047.0,94046.0,2.6e-07]
[1736440384874,0.21392753,94034.0,94031.0,0.00050505]
[1736440385086,1.43146526,94034.0,94031.0,0.00050505]
[1736440385530,1.4424105,94034.0,94031.0,0.00050505]
[1736440386143,1.44690787,94034.0,94031.0,0.00050505]
[1736440386341,1.5236083,94034.0,94031.0,0.00050505]
[1736440386545,1.44690787,94034.0,94031.0,0.00050505]
[1736440386750,1.43022673,94034.0,94031.0,0.00050505]
[1736440386955,1.43146526,94034.0,94031.0,0.00050505]
[1736440387377,1.44497359,94034.0,94031.0,0.00050505]
[1736440387589,1.45297359,94034.0,94031.0,0.00050505]
[1736440387802,1.54927335,94034.0,94031.0,0.00050505]
[1736440388012,1.54627335,94034.0,94031.0,0.00050505]
[1736440388218,1.54927335,94034.0,94031.0,0.00050505]
[1736440389256,1.55027335,94034.0,94031.0,0.00050505]
[1736440389453,1.44597359,94034.0,94031.0,0.00050505]
[1736440391961,1.44473506,94034.0,94031.0,0.00050505]
[1736440392563,1.44597359,94034.0,94031.0,0.00050505]
[1736440392771,1.43422673,94034.0,94031.0,0.00050505]
[1736440393016,0.00523853,94034.0,94031.0,0.00050505]
[1736440393236,0.004,94034.0,94033.0,0.06436976]
[1736440393871,0.004,94034.0,94033.0,0.14493311]
[1736440394085,0.003,94034.0,94033.0,0.14493311]
[1736440394536,0.13040747,94050.0,94035.0,0.0779]
[1736440394747,0.13040747,94050.0,94038.0,0.10429976]
[1736440395177,0.00049888,94051.0,94040.0,0.19065041]
[1736440395392,0.00049888,94051.0,94041.0,0.18219976]
[1736440395820,0.00049888,94051.0,94042.0,0.19065041]
[1736440396042,0.00049888,94051.0,94043.0,0.10429976]
[1736440397651,0.00149888,94051.0,94046.0,0.19065041]
[1736440397860,0.00149888,94051.0,94047.0,0.11293976]
[1736440398070,0.00149888,94051.0,94048.0,0.0465]
[1736440398266,0.00149888,94051.0,94049.0,0.10429976]
[1736440398549,0.00049888,94051.0,94049.0,0.10429976]
[1736440398775,0.00149888,94051.0,94049.0,0.10429976]
[1736440399228,0.00149888,94051.0,94050.0,0.0779]
[1736440399431,0.00149888,94051.0,94050.0,0.18219976]
[1736440400045,0.00149888,94051.0,94050.0,0.37285017]
[1736440400452,0.00049888,94051.0,94050.0,0.37385017]
[1736440401050,0.00149888,94051.0,94050.0,0.18319976]
[1736440401252,0.00049888,94051.0,94050.0,0.18319976]
[1736440401654,0.00149888,94051.0,94050.0,0.18419976]
[1736440402494,0.00149888,94051.0,94050.0,0.18526284]
[1736440403283,0.00149888,94051.0,94050.0,0.20826284]
[1736440403492,0.00149888,94051.0,94050.0,0.20719976]
[1736440404544,0.00149888,94051.0,94050.0,0.39772436]
[1736440408041,0.00149888,94051.0,94050.0,0.20719976]
[1736440408241,0.00149888,94051.0,94050.0,0.51861323]
[1736440408445,0.00149888,94051.0,94050.0,0.61861323]
[1736440409098,0.00149888,94051.0,94050.0,0.61761323]
[1736440409517,0.00149888,94051.0,94050.0,1.03790818]
[1736440409722,0.00149888,94051.0,94050.0,1.03890818]
[1736440409950,0.00149888,94051.0,94050.0,0.61861323]
[1736440410398,0.00049888,94051.0,94050.0,0.61761323]
[1736440410710,0.00149888,94051.0,94050.0,0.62461323]
[1736440410913,0.00249888,94051.0,94050.0,0.62561323]
[1736440412973,0.00249888,94051.0,94050.0,0.63425323]
[1736440413175,0.00249888,94051.0,94050.0,0.78425323]
[1736440413529,0.00249888,94051.0,94050.0,1.20454818]
[1736440413752,0.00249888,94051.0,94050.0,1.24964818]
[1736440414181,0.00249888,94051.0,94050.0,0.82935323]
[1736440414588,0.0001706,94089.0,94068.0,0.023]
[1736440414797,0.0001706,94089.0,94075.0,0.10429976]
[1736440414999,0.0001706,94089.0,94079.0,0.10429976]
[1736440415195,0.0001706,94089.0,94080.0,0.00106273]
[1736440415402,0.0001706,94089.0,94081.0,0.10429976]
[1736440416013,0.0021706,94089.0,94082.0,0.00106273]
[1736440416253,0.0021706,94089.0,94083.0,0.10429976]
[1736440416455,0.0001706,94089.0,94084.0,0.00106273]
[1736440416658,0.0001706,94089.0,94085.0,0.10429976]
[1736440417548,0.0051706,94089.0,94085.0,0.10429976]
[1736440417754,0.0001706,94089.0,94085.0,0.10429976]
[1736440418098,0.0001706,94089.0,94085.0,0.11029976]
[1736440418902,0.0001706,94089.0,94085.0,0.11229976]
[1736440419518,0.0001706,94089.0,94086.0,0.08276273]
[1736440419710,0.0001706,94089.0,94088.0,0.10429976]
[1736440419913,0.0001706,94089.0,94088.0,0.10536239]
[1736440420152,0.0001706,94089.0,94088.0,0.34092839]
[1736440420315,0.0001706,94089.0,94088.0,0.33986576]
[1736440421416,0.0001706,94089.0,94088.0,0.34486576]
[1736440421621,0.0001706,94089.0,94088.0,0.81892723]
[1736440421825,0.0001706,94089.0,94088.0,0.82756723]
[1736440422033,0.0001708,94097.0,94096.0,0.56130947]
[1736440422249,0.00032047,94097.0,94096.0,0.79270923]
[1736440422450,0.00032047,94097.0,94096.0,0.82569439]
[1736440422666,0.00032047,94097.0,94096.0,0.84869439]
[1736440422874,0.0001708,94125.0,94124.0,0.56134647]
[1736440423081,0.0001708,94125.0,94124.0,0.67428623]
[1736440423910,0.0001708,94125.0,94124.0,0.82428623]
[1736440424584,0.0001706,94127.0,94126.0,0.37176147]
[1736440424794,0.00032024,94127.0,94126.0,0.50897726]
[1736440425239,0.00032024,94127.0,94126.0,0.58677726]
[1736440425658,0.00123853,94168.0,94128.0,0.37176147]
[1736440425870,0.00123853,94168.0,94128.0,0.50897726]
[1736440426279,0.21362553,94168.0,94128.0,0.59217726]
[1736440426519,0.00123853,94169.0,94128.0,0.59217726]
[1736440426719,0.212373,94174.0,94128.0,0.59217726]
[1736440426929,0.22305093,94179.0,94128.0,0.59217726]
[1736440426930,0.01068993,94179.0,94134.0,0.64442447]
[1736440427129,0.00123853,94179.0,94134.0,0.80459349]
[1736440427337,0.212362,94179.0,94134.0,0.80459349]
[1736440427541,0.212374,94174.0,94134.0,0.80459349]
[1736440428392,0.0011706,94135.0,94134.0,0.63936423]
[1736440428642,0.0011706,94135.0,94134.0,0.54060276]
[1736440428923,0.0011706,94135.0,94134.0,0.63936423]
[1736440429607,0.0011706,94135.0,94134.0,0.64436423]
[1736440430032,0.0001706,94135.0,94134.0,0.78036423]
[1736440430244,0.0001706,94135.0,94134.0,1.20892237]
[1736440430469,0.0001706,94135.0,94134.0,0.80476631]
[1736440430692,0.0001706,94135.0,94134.0,0.79576631]
[1736440431111,0.0001704,94173.0,94144.0,0.41120147]
[1736440431322,0.0001704,94173.0,94144.0,0.67140123]
[1736440431806,0.212378,94172.0,94144.0,0.67140123]
[1736440433135,0.424756,94172.0,94144.0,0.67140123]
[1736440433348,0.0001704,94173.0,94144.0,0.67140123]
[1736440433349,0.212396,94164.0,94144.0,0.10429976]
[1736440433553,0.15,94150.0,94144.0,0.11829976]
[1736440433754,0.03766847,94145.0,94144.0,0.10929976]
[1736440433964,0.00140893,94145.0,94144.0,0.10929976]
[1736440434170,0.0001704,94145.0,94144.0,0.11829976]
[1736440434378,0.0001704,94145.0,94144.0,0.10929976]
[1736440434782,0.0001704,94145.0,94144.0,0.11429976]
[1736440435014,0.0001704,94145.0,94144.0,0.11793976]
[1736440435411,0.0001704,94145.0,94144.0,0.34105499]
[1736440435665,0.0001704,94145.0,94144.0,0.34969499]
[1736440435869,0.0001704,94145.0,94144.0,0.34869499]
[1736440436073,0.0011704,94145.0,94144.0,0.11293976]
[1736440440260,0.0011704,94145.0,94144.0,0.13912141]
[1736440440872,0.0011704,94145.0,94144.0,0.34242141]
[1736440441076,0.212381,94171.0,94155.0,0.023]
[1736440441280,0.0001704,94173.0,94162.0,0.02501125]
[1736440441281,0.00066941,94173.0,94162.0,0.02501125]
[1736440441476,0.00066941,94173.0,94165.0,0.10429976]
[1736440441695,0.212377,94172.0,94165.0,0.10429976]
[1736440441896,0.00066941,94173.0,94165.0,0.10429976]
[1736440442096,0.00066941,94173.0,94169.0,0.02501125]
[1736440442330,0.00066941,94173.0,94166.0,0.00106181]
[1736440442331,0.00066941,94173.0,94172.0,0.22841101]
[1736440442548,0.00366941,94173.0,94172.0,0.63954948]
[1736440443017,0.0001704,94183.0,94172.0,0.63954948]
[1736440443018,0.0001704,94183.0,94179.0,0.21236]
[1736440443215,0.00031998,94183.0,94182.0,0.15231101]
[1736440443421,0.00031998,94183.0,94182.0,0.15337258]
[1736440443629,0.00031998,94183.0,94182.0,0.50213405]
[1736440443786,0.00031998,94183.0,94182.0,0.53390831]
[1736440444338,0.00031998,94183.0,94182.0,0.54254831]
[1736440444752,0.0492,94229.0,94202.0,0.212308]
[1736440444753,0.21226,94224.0,94202.0,0.212308]
[1736440444959,0.21226,94224.0,94208.0,0.10429976]
[1736440445174,0.212269,94220.0,94209.0,0.0097013]
[1736440445389,0.212269,94220.0,94210.0,0.10429976]
[1736440445593,0.212269,94220.0,94211.0,0.01140011]
[1736440445775,0.212251,94228.0,94216.0,0.10429976]
[1736440446017,0.424502,94228.0,94216.0,0.10429976]
[1736440446369,0.00014952,94229.0,94222.0,0.02501125]
[1736440446585,0.212251,94228.0,94223.0,0.10429976]
[1736440446947,0.424502,94228.0,94223.0,0.10429976]
[1736440447800,0.424502,94228.0,94224.0,0.01398457]
[1736440448037,0.00014952,94229.0,94225.0,0.10429976]
[1736440448258,0.00014952,94229.0,94227.0,0.023]
[1736440448259,0.001,94228.0,94227.0,0.023]
[1736440448459,0.001,94228.0,94227.0,0.15337207]
[1736440448670,0.00014952,94229.0,94228.0,0.36026225]
[1736440448885,0.00014952,94229.0,94228.0,0.65582359]
[1736440449088,0.0001618,94240.0,94239.0,0.235226]
[1736440449293,0.0001618,94240.0,94239.0,0.34812576]
[1736440449490,0.0001618,94240.0,94239.0,0.10429976]
[1736440449704,0.0001618,94240.0,94239.0,0.13791101]
[1736440451349,0.0011618,94240.0,94239.0,0.13791101]
[1736440451998,0.0011618,94240.0,94239.0,0.16191101]
[1736440452221,0.0011618,94240.0,94239.0,0.15331101]
[1736440452222,0.0001618,94240.0,94239.0,0.15331101]
[1736440452426,0.0001618,94240.0,94239.0,0.16197185]
[1736440452629,0.15,94265.0,94240.0,0.26023525]
[1736440452837,0.212187,94257.0,94249.0,0.10429976]
[1736440453255,0.21218,94260.0,94252.0,0.10429976]
[1736440453470,0.19628464,94260.0,94253.0,0.0086]
[1736440453685,0.21219,94255.0,94254.0,0.11289976]
[1736440454101,0.21343953,94250.0,94249.0,0.28180107]
[1736440454307,0.36343953,94250.0,94249.0,0.28180107]
[1736440454515,0.00123853,94246.0,94245.0,0.18786913]
[1736440454684,0.21221,94246.0,94245.0,0.18786913]
[1736440454890,0.21211695,94246.0,94245.0,0.10429976]
[1736440455498,0.214201,94250.0,94245.0,0.10429976]
[1736440455705,0.214201,94250.0,94246.0,0.10429976]
[1736440456050,0.424404,94250.0,94246.0,0.10429976]
[1736440456229,0.424404,94250.0,94249.0,0.18785812]
[1736440456430,0.212201,94250.0,94249.0,0.29215788]
[1736440456877,0.212194,94254.0,94250.0,0.02501125]
[1736440457053,0.212194,94254.0,94251.0,0.10429976]
[1736440457319,0.424388,94254.0,94251.0,0.10429976]
[1736440457952,0.424388,94254.0,94251.0,0.33911145]
[1736440458194,0.425388,94254.0,94251.0,0.33911145]
[1736440458400,0.426388,94254.0,94251.0,0.33911145]
[1736440458608,0.426388,94254.0,94253.0,0.18784797]
[1736440458812,0.426388,94254.0,94253.0,0.29214773]
[1736440459912,0.426388,94254.0,94253.0,0.31715898]
[1736440460127,0.66111229,94254.0,94253.0,0.21285922]
[1736440460340,0.66739164,94254.0,94253.0,0.21285922]
[1736440460547,0.65911229,94254.0,94253.0,0.02501125]
[1736440460764,0.66011229,94254.0,94253.0,0.02501125]
[1736440460981,0.66111229,94254.0,94253.0,0.02501125]
[1736440461190,0.66970239,94254.0,94253.0,0.02501125]
[1736440461372,0.67070239,94254.0,94253.0,0.02501125]
[1736440461574,0.67370239,94254.0,94253.0,0.02501125]
[1736440461787,0.67370239,94254.0,94242.0,0.0086]
[1736440461788,0.21345553,94243.0,94242.0,0.0086]
[1736440462017,0.21347153,94236.0,94235.0,0.21303314]
[1736440462217,0.36347153,94236.0,94235.0,0.18802189]
[1736440462427,0.37075088,94236.0,94235.0,0.18802189]
[1736440462636,0.36348453,94230.0,94229.0,0.18802189]
[1736440462850,1.43102226,94230.0,94229.0,0.18802189]
[1736440463322,1.4701263,94230.0,94229.0,0.18802189]
[1736440463524,0.424538,94220.0,94217.0,0.0086]
[1736440463731,0.424538,94220.0,94219.0,0.00014952]
[1736440464834,0.426538,94220.0,94219.0,0.00014952]
[1736440465018,0.429538,94220.0,94219.0,0.00014952]
[1736440465246,0.426538,94220.0,94219.0,0.00014952]
[1736440465452,0.424538,94220.0,94219.0,0.18817141]
[1736440465665,0.426538,94220.0,94219.0,0.18817141]
[1736440466104,0.45807112,94220.0,94219.0,0.00014952]
[1736440466522,0.45807112,94220.0,94219.0,0.23591303]
[1736440466739,0.45930965,94220.0,94219.0,0.23591303]
[1736440467245,0.45930965,94220.0,94219.0,0.00014952]
[1736440467463,1.72341426,94220.0,94219.0,0.00014952]
[1736440467676,1.72341426,94220.0,94219.0,0.18889474]
[1736440467677,1.71941426,94220.0,94219.0,0.18889474]
[1736440467887,1.72141426,94220.0,94219.0,0.18889474]
[1736440468101,1.72341426,94220.0,94219.0,0.18889474]
[1736440468308,1.72341426,94220.0,94219.0,0.00014952]
[1736440468964,0.57977653,94220.0,94219.0,0.00014952]
[1736440470517,0.42777653,94220.0,94219.0,0.00014952]
[1736440470716,0.42577653,94220.0,94219.0,0.00014952]
[1736440470913,0.42777653,94220.0,94219.0,0.23643496]
[1736440471120,0.42977653,94220.0,94219.0,0.23643496]
[1736440471320,0.42777653,94220.0,94219.0,0.23643496]
[1736440471516,0.42977653,94220.0,94219.0,0.23643496]
[1736440471783,0.49502089,94220.0,94219.0,0.00014952]
[1736440471962,1.71055862,94220.0,94219.0,0.00014952]
[1736440472177,1.70855862,94220.0,94219.0,0.00014952]
[1736440472579,1.71255862,94220.0,94219.0,0.00014952]
[1736440472878,1.76245862,94220.0,94219.0,0.00014952]
[1736440473628,1.69721426,94220.0,94219.0,0.00014952]
[1736440473789,1.69521426,94220.0,94219.0,0.00014952]
[1736440474005,1.69321426,94220.0,94219.0,0.00014952]
[1736440474206,1.69521426,94220.0,94219.0,0.00014952]
[1736440474409,1.69721426,94220.0,94219.0,0.00014952]
[1736440475408,1.80151402,94220.0,94219.0,0.00014952]
[1736440475819,1.69721426,94220.0,94219.0,0.00014952]
[1736440477613,1.64731426,94220.0,94219.0,0.00014952]
[1736440478427,1.64731426,94220.0,94219.0,5.2e-07]
[1736440478636,1.83767151,94220.0,94219.0,5.2e-07]
[1736440478864,1.98938366,94220.0,94219.0,5.2e-07]
[1736440479076,0.44634553,94203.0,94202.0,0.18909659]
[1736440479283,1.51388326,94203.0,94202.0,0.18909659]
[1736440479461,0.212343,94187.0,94186.0,0.03361125]
[1736440479665,0.212343,94187.0,94186.0,0.13791101]
[1736440481352,0.212343,94187.0,94186.0,0.13891101]
[1736440482180,0.212343,94187.0,94186.0,0.14191101]
[1736440482418,0.212332,94192.0,94186.0,0.14191101]
[1736440482641,0.21234,94189.0,94187.0,0.10429976]
[1736440483299,0.21234,94189.0,94187.0,0.29339635]
[1736440483719,0.21234,94189.0,94188.0,0.02501125]
[1736440483906,0.21234,94189.0,94188.0,0.12931101]
[1736440484316,0.21234,94189.0,94188.0,0.3184076]
[1736440485105,0.21234,94189.0,94181.0,8.51e-05]
[1736440485106,0.21234,94189.0,94183.0,0.18909659]
[1736440485349,0.21235,94184.0,94183.0,0.18909659]
[1736440485664,0.21235,94184.0,94181.0,8.51e-05]
[1736440485665,0.424701,94184.0,94181.0,8.51e-05]
[1736440486085,0.0637042,94183.0,94181.0,8.51e-05]
[1736440486310,0.212354,94182.0,94181.0,8.51e-05]
[1736440487336,0.21359253,94182.0,94181.0,8.51e-05]
[1736440487541,0.22406809,94182.0,94181.0,0.0040851]
[1736440488379,0.37406809,94182.0,94181.0,8.51e-05]
[1736440488592,0.45088557,94182.0,94181.0,1e-07]
[1736440488999,0.44988557,94182.0,94181.0,1e-07]
[1736440489623,0.37406809,94182.0,94181.0,1e-07]
[1736440490249,0.37706809,94182.0,94181.0,1e-07]
[1736440490463,0.37906809,94182.0,94181.0,1e-07]
[1736440497928,0.10123853,94180.0,94179.0,2e-07]
[1736440498105,1.48649748,94180.0,94179.0,2e-07]
[1736440498315,1.52604082,94180.0,94179.0,2e-07]
[1736440499100,1.48543502,94180.0,94179.0,2e-07]
[1736440500448,1.76313502,94180.0,94179.0,2e-07]
[1736440500655,1.77258063,94180.0,94179.0,2e-07]
[1736440500877,1.77158063,94180.0,94179.0,2e-07]
[1736440501558,1.77458063,94180.0,94179.0,2e-07]
[1736440501838,1.98788039,94180.0,94179.0,2e-07]
[1736440502078,0.15,94169.0,94159.0,0.02501125]
[1736440502314,0.36364253,94160.0,94159.0,0.02501125]
[1736440504305,0.36364253,94160.0,94159.0,0.02601125]
[1736440504929,0.36364253,94160.0,94159.0,0.02801125]
[1736440505161,0.44248608,94160.0,94159.0,0.02801125]
[1736440506537,0.36364253,94160.0,94159.0,0.02801125]
[1736440508145,0.37455831,94160.0,94159.0,0.02801125]
[1736440508358,0.212404,94160.0,94159.0,0.02341125]
[1736440508575,0.212404,94160.0,94159.0,0.12771101]
[1736440508786,0.212404,94160.0,94159.0,0.31774069]
[1736440509017,0.01042634,94171.0,94159.0,0.37284069]
[1736440509258,0.01042634,94171.0,94160.0,0.10429976]
[1736440509259,0.13023616,94170.0,94160.0,0.10429976]
[1736440509891,0.212384,94169.0,94166.0,0.28504452]
[1736440510092,0.212384,94169.0,94167.0,0.10429976]
[1736440511591,0.212384,94169.0,94168.0,0.0772]
[1736440511828,0.212376,94173.0,94168.0,0.18149976]
[1736440512039,0.212376,94173.0,94169.0,0.10429976]
[1736440512249,0.424752,94173.0,94169.0,0.10429976]
[1736440512472,0.424752,94173.0,94167.0,0.009]
[1736440512473,0.212384,94169.0,94167.0,0.009]
[1736440512680,0.00230099,94168.0,94167.0,0.009]
[1736440512958,0.16176149,94168.0,94167.0,0.013]
[1736440513175,0.24784733,94168.0,94167.0,0.004]
[1736440513387,0.15123853,94168.0,94167.0,0.004]
[1736440513603,0.21364053,94161.0,94159.0,0.02041125]
[1736440513817,0.21364053,94161.0,94157.0,0.19023704]
[1736440513818,0.21364053,94161.0,94160.0,0.02041125]
[1736440514496,0.20720453,94161.0,94160.0,0.02041125]
[1736440515599,0.20720453,94161.0,94160.0,0.12471101]
[1736440516222,0.20720453,94161.0,94160.0,0.12671101]
[1736440516650,0.20720453,94161.0,94160.0,0.12471101]
[1736440516885,0.20720453,94161.0,94160.0,0.13271101]
[1736440517711,0.00946167,94187.0,94160.0,0.13271101]
[1736440517919,0.21238,94171.0,94161.0,0.20011101]
[1736440518375,0.212375,94173.0,94161.0,0.20011101]
[1736440518591,0.15,94189.0,94162.0,0.24551551]
[1736440518810,0.15,94189.0,94169.0,0.2377963]
[1736440518811,0.21237,94176.0,94169.0,0.2377963]
[1736440519028,0.21237,94176.0,94170.0,0.10429976]
[1736440519236,0.21237,94176.0,94174.0,0.2377963]
[1736440519502,0.21237,94176.0,94175.0,0.11289976]
[1736440520529,0.21237,94176.0,94175.0,0.30330471]
[1736440520797,0.21237,94176.0,94175.0,0.30730471]
[1736440520975,0.21237,94176.0,94175.0,0.30830471]
[1736440521729,0.212362,94179.0,94175.0,0.30830471]
[1736440522239,0.212362,94179.0,94176.0,0.0813]
[1736440522478,0.212362,94179.0,94177.0,0.10429976]
[1736440522734,0.424724,94179.0,94178.0,0.02041125]
[1736440522936,0.424724,94179.0,94178.0,0.12471101]
[1736440523879,0.212362,94179.0,94178.0,0.12471101]
[1736440524314,0.212346,94186.0,94178.0,0.31511596]
[1736440524523,0.22316495,94190.0,94180.0,0.02041125]
[1736440524720,0.22316495,94190.0,94181.0,0.10429976]
[1736440524721,0.212354,94182.0,94181.0,0.10429976]
[1736440524928,0.212354,94182.0,94181.0,0.29470471]
[1736440525160,0.212354,94182.0,94181.0,0.30330471]
[1736440525366,0.212348,94185.0,94181.0,0.30330471]
[1736440525905,0.212348,94185.0,94181.0,0.32868939]
[1736440525906,0.424697,94185.0,94181.0,0.32868939]
[1736440526118,0.212346,94186.0,94181.0,0.30330471]
[1736440526316,0.212346,94186.0,94184.0,0.19040495]
[1736440526518,0.212346,94186.0,94185.0,0.10429976]
[1736440527759,0.212346,94186.0,94185.0,0.11229976]
[1736440527995,0.40586236,94186.0,94185.0,0.19861296]
[1736440528464,0.41483817,94186.0,94185.0,0.21902421]
[1736440528677,0.41483817,94186.0,94185.0,0.02841125]
[1736440528889,0.37132181,94186.0,94185.0,0.02841125]
[1736440529510,0.37132181,94186.0,94185.0,0.02041125]
[1736440529733,0.37132181,94186.0,94185.0,0.02341125]
[1736440529941,0.361846,94186.0,94185.0,0.02341125]
[1736440530143,0.361846,94186.0,94185.0,0.02041125]
[1736440530571,0.363846,94186.0,94185.0,0.02041125]
[1736440530781,0.213846,94186.0,94185.0,0.02041125]
[1736440530997,0.211846,94186.0,94185.0,0.02041125]
[1736440532759,1.42938373,94186.0,94185.0,0.02241125]
[1736440532962,1.75998349,94186.0,94185.0,0.02041125]
[1736440533169,1.75998349,94186.0,94180.0,0.19061296]
[1736440533170,0.15,94181.0,94180.0,0.19061296]
[1736440533418,0.15,94181.0,94173.0,0.19061296]
[1736440533419,0.362372,94174.0,94173.0,0.19061296]
[1736440533618,1.48748908,94174.0,94173.0,0.19061296]
[1736440533825,0.15,94173.0,94169.0,0.00014958]
[1736440534040,1.48748908,94174.0,94169.0,0.00014958]
[1736440534041,0.362381,94170.0,94169.0,0.00014958]
[1736440534462,0.36266299,94170.0,94169.0,5.8e-07]
[1736440534706,0.362408,94158.0,94157.0,0.5419]
[1736440534917,1.54682633,94158.0,94157.0,0.414454]
[1736440535124,0.362426,94150.0,94149.0,0.19061296]
[1736440535540,0.15,94149.0,94143.0,8.51e-05]
[1736440535744,0.36244,94144.0,94143.0,8.51e-05]
[1736440536345,0.44117,94144.0,94143.0,8.51e-05]
[1736440536775,0.36244,94144.0,94143.0,8.51e-05]
[1736440537132,0.36244,94144.0,94143.0,0.0010851]
[1736440537535,0.36244,94144.0,94143.0,8.51e-05]
[1736440537738,0.36244,94144.0,94143.0,0.006]
[1736440537930,0.574881,94144.0,94143.0,0.006]
[1736440538114,0.574881,94144.0,94143.0,0.008]
[1736440539107,0.574881,94144.0,94143.0,0.002]
[1736440539519,0.6886659,94144.0,94143.0,0.008]
[1736440540373,0.58436614,94144.0,94143.0,0.008]
[1736440540885,0.58436614,94144.0,94141.0,7.692e-05]
[1736440541075,0.362445,94142.0,94141.0,7.692e-05]
[1736440542058,0.37193014,94142.0,94141.0,7.692e-05]
[1736440543463,0.37193014,94142.0,94141.0,0.00207692]
[1736440543668,0.68052966,94142.0,94141.0,9.2e-07]
[1736440543868,0.68052966,94142.0,94122.0,8.51e-05]
[1736440543869,0.1,94140.0,94122.0,8.51e-05]
[1736440544042,0.362483,94125.0,94122.0,8.51e-05]